[Event "*** Titled Tuesday Blitz"]
[Site "Chess.com"]
[Date "2018.04.03"]
[Round "2"]
[White "ristingho"]
[Black "Mykola-Bortnyk"]
[Result "0-1"]
[WhiteElo "2299"]
[BlackElo "2700"]
[TimeControl "180+2"]
[EndTime "13:24:20 PDT"]
[Termination "Mykola-Bortnyk won by resignation"]

1. d4 {[%clk 0:03:01.9]} 1... d5 {[%clk 0:02:55.5]} 2. c4 {[%clk 0:02:59.5]}
2... e5 {[%clk 0:02:56.8]} 3. dxe5 {[%clk 0:02:57.7]} 3... d4 {[%clk 0:02:58.1]}
4. Nf3 {[%clk 0:02:59.3]} 4... Nc6 {[%clk 0:02:56.3]} 5. a3 {[%clk 0:02:58.4]}
5... Bg4 {[%clk 0:02:53.5]} 6. b4 {[%clk 0:02:50]} 6... a5 {[%clk 0:02:40.3]} 7.
b5 {[%clk 0:02:46.4]} 7... Bxf3 {[%clk 0:02:41.2]} 8. exf3 {[%clk 0:02:47.4]}
8... Nxe5 {[%clk 0:02:42.7]} 9. f4 {[%clk 0:02:37.3]} 9... Ng6 {[%clk
0:02:38.5]} 10. Bd3 {[%clk 0:02:25.8]} 10... Qe7+ {[%clk 0:02:14.2]} 11. Kf1
{[%clk 0:02:23.4]} 11... Nf6 {[%clk 0:01:52.1]} 12. Qf3 {[%clk 0:02:10.6]} 12...
Rb8 {[%clk 0:01:45.9]} 13. g3 {[%clk 0:02:03.9]} 13... Qc5 {[%clk 0:01:40.4]}
14. Kg2 {[%clk 0:01:56.7]} 14... Be7 {[%clk 0:01:37.5]} 15. a4 {[%clk
0:01:56.3]} 15... Qh5 {[%clk 0:01:18.8]} 16. Qxh5 {[%clk 0:01:46.8]} 16... Nxh5
{[%clk 0:01:20.7]} 17. Re1 {[%clk 0:01:33.2]} 17... Kd8 {[%clk 0:01:20.3]} 18.
Kf3 {[%clk 0:01:32.6]} 18... Nf6 {[%clk 0:01:10.6]} 19. Bb2 {[%clk 0:01:29]}
19... Bb4 {[%clk 0:01:02.2]} 20. Rd1 {[%clk 0:01:29.2]} 20... Ke7 {[%clk
0:00:53.4]} 21. Bxd4 {[%clk 0:01:19.8]} 21... Rhd8 {[%clk 0:00:51.8]} 22. Bb2
{[%clk 0:00:49.2]} 22... Rd7 {[%clk 0:00:45.6]} 23. Nc3 {[%clk 0:00:47.5]} 23...
Rbd8 {[%clk 0:00:46.3]} 24. Ke2 {[%clk 0:00:23.2]} 24... c6 {[%clk 0:00:46]} 25.
Bf5 {[%clk 0:00:23.7]} 25... Rd6 {[%clk 0:00:37]} 26. Ne4 {[%clk 0:00:20.6]}
26... Nxe4 {[%clk 0:00:36.8]} 27. Bxe4 {[%clk 0:00:21.5]} 27... f6 {[%clk
0:00:32.4]} 28. Rxd6 {[%clk 0:00:19.3]} 28... Rxd6 {[%clk 0:00:30.2]} 29. Rd1
{[%clk 0:00:19.9]} 29... Nf8 {[%clk 0:00:30.5]} 30. Rxd6 {[%clk 0:00:20.1]}
30... Kxd6 {[%clk 0:00:32.4]} 31. Kd3 {[%clk 0:00:19.9]} 31... Bc5 {[%clk
0:00:30.6]} 32. f3 {[%clk 0:00:19.5]} 32... Bb4 {[%clk 0:00:30.2]} 33. h4 {[%clk
0:00:20.1]} 33... h6 {[%clk 0:00:30.9]} 34. h5 {[%clk 0:00:19.6]} 34... Ne6
{[%clk 0:00:30.5]} 35. Ke3 {[%clk 0:00:10.8]} 35... Be1 {[%clk 0:00:20.9]} 36.
g4 {[%clk 0:00:10.9]} 36... Nc5 {[%clk 0:00:18.4]} 37. Bc2 {[%clk 0:00:08.7]}
37... Ne6 {[%clk 0:00:16.4]} 38. Bf5 {[%clk 0:00:08.6]} 38... Nc5 {[%clk
0:00:17.1]} 39. Bc2 {[%clk 0:00:09.5]} 39... Ne6 {[%clk 0:00:18.4]} 40. Bf5
{[%clk 0:00:09.6]} 40... Nc5 {[%clk 0:00:19.1]} 41. Ba3 {[%clk 0:00:09.4]} 41...
Bb4 {[%clk 0:00:19.9]} 42. Bb2 {[%clk 0:00:08.5]} 42... Nxa4 {[%clk 0:00:20.8]}
43. Ba1 {[%clk 0:00:07.9]} 43... Nb6 {[%clk 0:00:20.7]} 44. g5 {[%clk 0:00:08]}
44... Nxc4+ {[%clk 0:00:19.5]} 45. Ke2 {[%clk 0:00:07.2]} 45... Ke7 {[%clk
0:00:15.1]} 46. bxc6 {[%clk 0:00:07.1]} 46... bxc6 {[%clk 0:00:16.2]} 47. gxh6
{[%clk 0:00:07]} 47... gxh6 {[%clk 0:00:17.1]} 48. Bd3 {[%clk 0:00:07.4]} 48...
Nd6 {[%clk 0:00:18.2]} 49. Ke3 {[%clk 0:00:08]} 49... c5 {[%clk 0:00:19.7]} 50.
f5 {[%clk 0:00:07.8]} 50... c4 {[%clk 0:00:20.9]} 51. Bc2 {[%clk 0:00:08.8]}
51... Nb5 {[%clk 0:00:18.3]} 52. Ke4 {[%clk 0:00:09.9]} 52... Bc3 {[%clk
0:00:17.6]} 53. Bxc3 {[%clk 0:00:09.6]} 53... Nxc3+ {[%clk 0:00:19.5]} 54. Kd4
{[%clk 0:00:11.1]} 54... Ne2+ {[%clk 0:00:20.7]} 55. Kxc4 {[%clk 0:00:12.4]}
55... Ng3 {[%clk 0:00:21.9]} 56. Kb5 {[%clk 0:00:11.9]} 56... Nxh5 {[%clk
0:00:23.3]} 57. Kxa5 {[%clk 0:00:13.4]} 57... Nf4 {[%clk 0:00:25.2]} 58. Kb4
{[%clk 0:00:14.5]} 58... h5 {[%clk 0:00:27.1]} 59. Kc3 {[%clk 0:00:15.4]} 59...
h4 {[%clk 0:00:29]} 60. Kd2 {[%clk 0:00:17.3]} 60... h3 {[%clk 0:00:30.4]} 61.
Ke1 {[%clk 0:00:18.9]} 61... h2 {[%clk 0:00:31.9]} 0-1

[Event "*** Titled Tuesday Blitz"]
[Site "Chess.com"]
[Date "2018.04.03"]
[Round "2"]
[White "TregubovP"]
[Black "dianosky"]
[Result "1-0"]
[WhiteElo "2475"]
[BlackElo "2272"]
[TimeControl "180+2"]
[EndTime "13:24:20 PDT"]
[Termination "TregubovP won by resignation"]

1. d4 {[%clk 0:03:01.1]} 1... d5 {[%clk 0:03:00.3]} 2. c4 {[%clk 0:03:01.6]}
2... dxc4 {[%clk 0:03:01.3]} 3. e3 {[%clk 0:03:02.1]} 3... Nf6 {[%clk
0:03:01.1]} 4. Bxc4 {[%clk 0:03:02.4]} 4... a6 {[%clk 0:03:02.2]} 5. Nf3 {[%clk
0:03:03.5]} 5... b5 {[%clk 0:03:02.8]} 6. Bd3 {[%clk 0:02:53.3]} 6... Bb7 {[%clk
0:03:03.4]} 7. a4 {[%clk 0:02:53.9]} 7... b4 {[%clk 0:03:04]} 8. O-O {[%clk
0:02:54.5]} 8... Nbd7 {[%clk 0:03:04.4]} 9. Nbd2 {[%clk 0:02:53.5]} 9... e6
{[%clk 0:03:03.8]} 10. e4 {[%clk 0:02:53.3]} 10... c5 {[%clk 0:02:57.9]} 11. e5
{[%clk 0:02:54]} 11... Nd5 {[%clk 0:02:57.2]} 12. Ne4 {[%clk 0:02:54]} 12...
cxd4 {[%clk 0:02:56.9]} 13. Bg5 {[%clk 0:02:54.3]} 13... Qb6 {[%clk 0:02:51.7]}
14. a5 {[%clk 0:02:54.2]} 14... Qc7 {[%clk 0:02:52.4]} 15. Qa4 {[%clk
0:02:22.5]} 15... Bc6 {[%clk 0:02:41.5]} 16. Qc2 {[%clk 0:02:23.9]} 16... h6
{[%clk 0:02:28.8]} 17. Bh4 {[%clk 0:02:24.9]} 17... Nf4 {[%clk 0:02:03.1]} 18.
Rfc1 {[%clk 0:02:19.8]} 18... Qb7 {[%clk 0:01:46]} 19. Qxc6 {[%clk 0:01:55.5]}
19... Qxc6 {[%clk 0:01:45.6]} 20. Rxc6 {[%clk 0:01:57]} 20... Nxd3 {[%clk
0:01:46.4]} 21. Nd6+ {[%clk 0:01:42.4]} 21... Bxd6 {[%clk 0:01:45.7]} 22. exd6
{[%clk 0:01:37.8]} 22... e5 {[%clk 0:01:35.4]} 23. Rc7 {[%clk 0:01:26.1]} 23...
f6 {[%clk 0:01:34]} 24. b3 {[%clk 0:01:22.6]} 24... Rd8 {[%clk 0:01:25.1]} 25.
Nd2 {[%clk 0:01:11.9]} 25... O-O {[%clk 0:01:21.9]} 26. Nc4 {[%clk 0:01:05.6]}
26... N7c5 {[%clk 0:01:12.8]} 27. Rb1 {[%clk 0:01:05.8]} 27... Rf7 {[%clk
0:01:11.8]} 28. Rc6 {[%clk 0:01:01.6]} 28... g5 {[%clk 0:01:01.9]} 29. Bg3
{[%clk 0:01:01.5]} 29... Rfd7 {[%clk 0:01:02.4]} 30. f3 {[%clk 0:00:58.5]} 30...
Kf7 {[%clk 0:01:01.8]} 31. Kf1 {[%clk 0:00:55]} 31... Ke6 {[%clk 0:00:59.4]} 32.
Ke2 {[%clk 0:00:56]} 32... Kd5 {[%clk 0:00:52.9]} 33. Rb6 {[%clk 0:00:54.3]}
33... f5 {[%clk 0:00:43.5]} 34. Be1 {[%clk 0:00:54.1]} 34... Nxe1 {[%clk
0:00:38.6]} 35. Kxe1 {[%clk 0:00:53.1]} 35... e4 {[%clk 0:00:38.3]} 36. Kd2
{[%clk 0:00:44.5]} 36... exf3 {[%clk 0:00:21.2]} 37. gxf3 {[%clk 0:00:44.6]}
37... Re8 {[%clk 0:00:21.7]} 38. Rxb4 {[%clk 0:00:44.1]} 38... Kc6 {[%clk
0:00:13]} 39. Rb6+ {[%clk 0:00:42.1]} 39... Kd5 {[%clk 0:00:13.3]} 40. Rc1
{[%clk 0:00:33.9]} 40... d3 {[%clk 0:00:08.8]} 41. Ne3+ {[%clk 0:00:28.3]} 41...
Rxe3 {[%clk 0:00:09.3]} 42. Kxe3 {[%clk 0:00:28.9]} 42... f4+ {[%clk 0:00:10.1]}
43. Kd2 {[%clk 0:00:29.3]} 43... Rxd6 {[%clk 0:00:10.9]} 44. Rxd6+ {[%clk
0:00:27.3]} 44... Kxd6 {[%clk 0:00:11.7]} 45. Rc3 {[%clk 0:00:28.1]} 45... g4
{[%clk 0:00:10.4]} 46. b4 {[%clk 0:00:21.4]} 46... Na4 {[%clk 0:00:11]} 47.
Rxd3+ {[%clk 0:00:22.3]} 47... Ke5 {[%clk 0:00:12.2]} 48. fxg4 {[%clk
0:00:23.3]} 48... Ke4 {[%clk 0:00:12.5]} 49. Rh3 {[%clk 0:00:24.1]} 49... Nb2
{[%clk 0:00:12.7]} 50. Rxh6 {[%clk 0:00:23.9]} 50... Nc4+ {[%clk 0:00:13.9]} 51.
Ke2 {[%clk 0:00:25]} 51... f3+ {[%clk 0:00:14.9]} 52. Kf2 {[%clk 0:00:25.4]}
52... Ne5 {[%clk 0:00:16.5]} 53. Re6 {[%clk 0:00:24.8]} 53... Kf4 {[%clk
0:00:16.6]} 54. Rxe5 {[%clk 0:00:25.8]} 54... Kxe5 {[%clk 0:00:17.6]} 55. Kxf3
{[%clk 0:00:27.1]} 1-0

[Event "*** Titled Tuesday Blitz"]
[Site "Chess.com"]
[Date "2018.04.03"]
[Round "2"]
[White "Annawel"]
[Black "ahmadzada13"]
[Result "0-1"]
[WhiteElo "2863"]
[BlackElo "2601"]
[TimeControl "180+2"]
[EndTime "13:24:22 PDT"]
[Termination "ahmadzada13 won by resignation"]

1. c4 {[%clk 0:03:01.9]} 1... c5 {[%clk 0:03:00.3]} 2. Nf3 {[%clk 0:03:01.3]}
2... Nf6 {[%clk 0:03:01.2]} 3. b3 {[%clk 0:03:01.8]} 3... b6 {[%clk 0:03:02.1]}
4. Bb2 {[%clk 0:03:03.1]} 4... e6 {[%clk 0:03:03.4]} 5. g3 {[%clk 0:03:04]} 5...
Bb7 {[%clk 0:03:04.3]} 6. Bg2 {[%clk 0:03:05.6]} 6... Be7 {[%clk 0:03:05.2]} 7.
O-O {[%clk 0:03:06.5]} 7... O-O {[%clk 0:03:06.2]} 8. Re1 {[%clk 0:03:03.7]}
8... d5 {[%clk 0:03:05.4]} 9. cxd5 {[%clk 0:03:04.5]} 9... Nxd5 {[%clk
0:03:06.5]} 10. d4 {[%clk 0:03:06]} 10... cxd4 {[%clk 0:03:04.1]} 11. Nxd4
{[%clk 0:03:06.3]} 11... Nc6 {[%clk 0:02:59.6]} 12. a3 {[%clk 0:02:49.9]} 12...
Bf6 {[%clk 0:02:42.1]} 13. e4 {[%clk 0:02:40]} 13... Nxd4 {[%clk 0:02:31.1]} 14.
Bxd4 {[%clk 0:02:37.9]} 14... Bxd4 {[%clk 0:02:17.6]} 15. Qxd4 {[%clk
0:02:39.8]} 15... Ne7 {[%clk 0:02:17.6]} 16. Qe3 {[%clk 0:02:37.5]} 16... Rc8
{[%clk 0:02:06.9]} 17. Nc3 {[%clk 0:02:38.4]} 17... Qc7 {[%clk 0:02:02.3]} 18.
Rac1 {[%clk 0:02:39.1]} 18... Rfd8 {[%clk 0:01:55.8]} 19. h4 {[%clk 0:02:32.4]}
19... Qc5 {[%clk 0:01:45.4]} 20. Qxc5 {[%clk 0:02:07.8]} 20... Rxc5 {[%clk
0:01:45]} 21. b4 {[%clk 0:02:06.7]} 21... Rcc8 {[%clk 0:01:39.8]} 22. Nb5 {[%clk
0:01:25.4]} 22... a6 {[%clk 0:01:22.4]} 23. Rxc8 {[%clk 0:01:26.3]} 23... Nxc8
{[%clk 0:01:19.8]} 24. Nc7 {[%clk 0:01:27.5]} 24... Kf8 {[%clk 0:01:14.8]} 25.
Bf1 {[%clk 0:01:27.2]} 25... b5 {[%clk 0:01:10.4]} 26. a4 {[%clk 0:01:23.4]}
26... bxa4 {[%clk 0:01:10.7]} 27. Nxa6 {[%clk 0:01:24.3]} 27... Bxa6 {[%clk
0:00:58.6]} 28. Bxa6 {[%clk 0:01:26.2]} 28... Nb6 {[%clk 0:00:59.6]} 29. e5
{[%clk 0:01:22.6]} 29... Rd4 {[%clk 0:00:56.9]} 30. b5 {[%clk 0:01:06.3]} 30...
Rb4 {[%clk 0:00:53.2]} 31. Ra1 {[%clk 0:01:03.3]} 31... Ke7 {[%clk 0:00:52.1]}
32. Kf1 {[%clk 0:01:04.4]} 32... Rb2 {[%clk 0:00:47.4]} 33. h5 {[%clk
0:01:00.2]} 33... h6 {[%clk 0:00:47.1]} 34. g4 {[%clk 0:01:00.8]} 34... Rb4
{[%clk 0:00:45.5]} 35. f3 {[%clk 0:00:54.5]} 35... Rb2 {[%clk 0:00:45.4]} 36.
Ra3 {[%clk 0:00:53.8]} 36... Rb3 {[%clk 0:00:42]} 37. Ra2 {[%clk 0:00:55.1]}
37... Rxf3+ {[%clk 0:00:42]} 38. Kg2 {[%clk 0:00:56.4]} 38... Rb3 {[%clk
0:00:40.2]} 39. Kf2 {[%clk 0:00:55.2]} 39... a3 {[%clk 0:00:40.9]} 40. Ke1
{[%clk 0:00:55.2]} 40... Nc4 {[%clk 0:00:37.5]} 41. Kd1 {[%clk 0:00:55.1]} 41...
Nxe5 {[%clk 0:00:25]} 42. b6 {[%clk 0:00:55.1]} 42... Rxb6 {[%clk 0:00:25]} 43.
Rxa3 {[%clk 0:00:56.6]} 43... Nxg4 {[%clk 0:00:26.1]} 44. Be2 {[%clk 0:00:58.4]}
44... Ne5 {[%clk 0:00:24.9]} 45. Rg3 {[%clk 0:00:58]} 45... g5 {[%clk
0:00:24.2]} 46. hxg6 {[%clk 0:00:58.4]} 46... fxg6 {[%clk 0:00:25.2]} 47. Kd2
{[%clk 0:00:58.4]} 47... Rb2+ {[%clk 0:00:24.2]} 48. Kd1 {[%clk 0:00:59.9]}
48... Rb1+ {[%clk 0:00:24.9]} 49. Kc2 {[%clk 0:01:00.8]} 49... Re1 {[%clk
0:00:25.1]} 50. Kd2 {[%clk 0:01:02]} 50... Ra1 {[%clk 0:00:25.7]} 51. Bd1 {[%clk
0:01:01.9]} 51... Kf6 {[%clk 0:00:25.2]} 52. Bc2 {[%clk 0:01:02.1]} 52... g5
{[%clk 0:00:25.8]} 53. Rg2 {[%clk 0:01:03.6]} 53... g4 {[%clk 0:00:26]} 54. Rf2+
{[%clk 0:01:02.2]} 54... Kg5 {[%clk 0:00:26.8]} 55. Re2 {[%clk 0:01:03.9]} 55...
Nf3+ {[%clk 0:00:27.3]} 56. Kc3 {[%clk 0:01:04.6]} 56... Ra3+ {[%clk 0:00:26.8]}
57. Kb4 {[%clk 0:01:04.2]} 57... Ra6 {[%clk 0:00:24.2]} 58. Bd3 {[%clk
0:01:00.2]} 58... Rd6 {[%clk 0:00:24.7]} 59. Bc4 {[%clk 0:01:00.4]} 59... h5
{[%clk 0:00:24.3]} 60. Kc5 {[%clk 0:01:01.4]} 60... Rd4 {[%clk 0:00:21.4]} 61.
Bxe6 {[%clk 0:01:01.1]} 61... Rd2 {[%clk 0:00:21.1]} 62. Re4 {[%clk 0:01:01.5]}
62... g3 {[%clk 0:00:22.4]} 63. Re3 {[%clk 0:01:02.2]} 63... Kf4 {[%clk
0:00:22.7]} 64. Ra3 {[%clk 0:01:00.6]} 64... g2 {[%clk 0:00:23.3]} 65. Ra4+
{[%clk 0:01:02.1]} 65... Rd4 {[%clk 0:00:22.4]} 66. Ra1 {[%clk 0:01:01.4]} 66...
Re4 {[%clk 0:00:22.7]} 67. Bd5 {[%clk 0:01:00]} 67... Re1 {[%clk 0:00:22]} 68.
Bxf3 {[%clk 0:00:59.6]} 68... Rxa1 {[%clk 0:00:22.1]} 69. Bxg2 {[%clk
0:01:00.3]} 69... h4 {[%clk 0:00:23.6]} 70. Kd4 {[%clk 0:01:01.9]} 70... Kg3
{[%clk 0:00:25.2]} 71. Bd5 {[%clk 0:01:02.9]} 71... h3 {[%clk 0:00:26.6]} 72.
Kc3 {[%clk 0:01:04.8]} 72... h2 {[%clk 0:00:27.9]} 73. Kb2 {[%clk 0:01:06.7]}
73... h1=Q {[%clk 0:00:29.3]} 0-1

[Event "*** Titled Tuesday Blitz"]
[Site "Chess.com"]
[Date "2018.04.03"]
[Round "2"]
[White "TomPolgar"]
[Black "nicegg"]
[Result "1-0"]
[WhiteElo "2072"]
[BlackElo "1883"]
[TimeControl "180+2"]
[EndTime "13:24:31 PDT"]
[Termination "TomPolgar won by resignation"]

1. e4 {[%clk 0:03:01.9]} 1... e5 {[%clk 0:03:00.2]} 2. Nf3 {[%clk 0:03:02.2]}
2... Nc6 {[%clk 0:03:01.4]} 3. Nc3 {[%clk 0:03:03.2]} 3... Nf6 {[%clk
0:03:01.4]} 4. d4 {[%clk 0:03:04.1]} 4... exd4 {[%clk 0:03:02.1]} 5. Nxd4 {[%clk
0:03:05.1]} 5... Bb4 {[%clk 0:03:03.1]} 6. Nxc6 {[%clk 0:03:05.8]} 6... Bxc3+
{[%clk 0:03:03.9]} 7. bxc3 {[%clk 0:03:03.4]} 7... dxc6 {[%clk 0:03:03.8]} 8.
Qxd8+ {[%clk 0:02:53.8]} 8... Kxd8 {[%clk 0:03:04.1]} 9. Bd3 {[%clk 0:02:48.3]}
9... Be6 {[%clk 0:03:02.7]} 10. O-O {[%clk 0:02:49]} 10... c5 {[%clk 0:03:02.7]}
11. Rd1 {[%clk 0:02:41.4]} 11... Ke7 {[%clk 0:02:51.7]} 12. Bg5 {[%clk 0:02:25]}
12... h6 {[%clk 0:02:51.6]} 13. Be3 {[%clk 0:02:16.5]} 13... b6 {[%clk
0:02:46.3]} 14. e5 {[%clk 0:02:10.8]} 14... Nd5 {[%clk 0:02:43]} 15. Bd2 {[%clk
0:01:49.3]} 15... Rad8 {[%clk 0:02:34]} 16. a3 {[%clk 0:01:44.4]} 16... c6
{[%clk 0:02:24.6]} 17. c4 {[%clk 0:01:38.9]} 17... Nc7 {[%clk 0:02:22.6]} 18. a4
{[%clk 0:01:35.7]} 18... Rd4 {[%clk 0:02:22.4]} 19. Be3 {[%clk 0:01:32.1]} 19...
Rd7 {[%clk 0:02:15.9]} 20. a5 {[%clk 0:01:32.9]} 20... Rhd8 {[%clk 0:02:10.1]}
21. axb6 {[%clk 0:01:19.9]} 21... axb6 {[%clk 0:02:11.3]} 22. Rdb1 {[%clk
0:01:17.4]} 22... b5 {[%clk 0:01:47.7]} 23. Bxc5+ {[%clk 0:01:17]} 23... Ke8
{[%clk 0:01:46.7]} 24. cxb5 {[%clk 0:01:16.1]} 24... cxb5 {[%clk 0:01:44.3]} 25.
h3 {[%clk 0:01:12.3]} 25... Bc4 {[%clk 0:01:42.4]} 26. Be4 {[%clk 0:00:59.6]}
26... Bd5 {[%clk 0:01:35.8]} 27. Bd3 {[%clk 0:00:58.2]} 27... Bc4 {[%clk
0:01:36.1]} 28. Be4 {[%clk 0:00:59.6]} 28... Bd5 {[%clk 0:01:36.9]} 29. Bxd5
{[%clk 0:00:59.1]} 29... Rxd5 {[%clk 0:01:32.4]} 30. Bd6 {[%clk 0:00:59.9]}
30... Ne6 {[%clk 0:01:29.8]} 31. Ra7 {[%clk 0:00:59.5]} 31... Rd7 {[%clk
0:01:18]} 32. Ra8+ {[%clk 0:00:47.6]} 32... Rd8 {[%clk 0:01:17.7]} 33. Ra7
{[%clk 0:00:48.6]} 33... Rd7 {[%clk 0:01:18.8]} 34. Rba1 {[%clk 0:00:48.6]}
34... Rd2 {[%clk 0:01:12.9]} 35. Rxd7 {[%clk 0:00:41.1]} 35... Kxd7 {[%clk
0:01:12.8]} 36. Ra7+ {[%clk 0:00:39.4]} 36... Kc6 {[%clk 0:01:12.6]} 37. c3
{[%clk 0:00:39.1]} 37... Kd5 {[%clk 0:01:03.4]} 38. Rxf7 {[%clk 0:00:38.9]}
38... Rc2 {[%clk 0:01:03.4]} 39. Rd7 {[%clk 0:00:33.8]} 39... Kc6 {[%clk
0:00:58.6]} 40. Bb4 {[%clk 0:00:33.8]} 40... Kxd7 {[%clk 0:00:58.1]} 41. g3
{[%clk 0:00:30.8]} 41... Kc6 {[%clk 0:00:58.9]} 42. Kg2 {[%clk 0:00:29.8]} 42...
Kd5 {[%clk 0:01:00]} 43. Kf3 {[%clk 0:00:31.2]} 43... Nc5 {[%clk 0:01:00.6]} 44.
Ke3 {[%clk 0:00:29.3]} 44... Ne4 {[%clk 0:01:01.5]} 45. e6 {[%clk 0:00:18.4]}
45... Nf6 {[%clk 0:00:38.3]} 46. e7 {[%clk 0:00:19.6]} 46... Ke6 {[%clk
0:00:37.4]} 47. f4 {[%clk 0:00:18.1]} 47... Kd7 {[%clk 0:00:36.3]} 48. Kd4
{[%clk 0:00:13.7]} 48... Rg2 {[%clk 0:00:34.7]} 49. g4 {[%clk 0:00:14.2]} 49...
Rg3 {[%clk 0:00:34.6]} 50. Kc5 {[%clk 0:00:11.8]} 50... Rxh3 {[%clk 0:00:32.9]}
51. Kxb5 {[%clk 0:00:12.6]} 51... Nxg4 {[%clk 0:00:32.9]} 52. c4 {[%clk
0:00:13.1]} 52... Nf6 {[%clk 0:00:33.6]} 53. c5 {[%clk 0:00:12.4]} 53... Ne8
{[%clk 0:00:32.6]} 54. c6+ {[%clk 0:00:13.2]} 54... Kc8 {[%clk 0:00:32.2]} 55.
f5 {[%clk 0:00:07.1]} 55... Rd3 {[%clk 0:00:31.7]} 56. Kc4 {[%clk 0:00:07.6]}
56... Rd1 {[%clk 0:00:31.5]} 57. Bc3 {[%clk 0:00:08]} 57... h5 {[%clk
0:00:32.4]} 58. Bxg7 {[%clk 0:00:08.7]} 58... Rd6 {[%clk 0:00:25.6]} 59. f6
{[%clk 0:00:09.3]} 59... Rxc6+ {[%clk 0:00:24.1]} 60. Kd5 {[%clk 0:00:10.4]}
60... Rxf6 {[%clk 0:00:22.2]} 61. Bxf6 {[%clk 0:00:10.9]} 61... Nxf6+ {[%clk
0:00:23.2]} 62. Ke6 {[%clk 0:00:11.3]} 62... h4 {[%clk 0:00:23]} 63. Kxf6 {[%clk
0:00:12.1]} 63... h3 {[%clk 0:00:21.7]} 64. e8=Q+ {[%clk 0:00:13.2]} 1-0

[Event "*** Titled Tuesday Blitz"]
[Site "Chess.com"]
[Date "2018.04.03"]
[Round "2"]
[White "mishanick"]
[Black "JSPrepz"]
[Result "1-0"]
[WhiteElo "2857"]
[BlackElo "2587"]
[TimeControl "180+2"]
[EndTime "13:24:41 PDT"]
[Termination "mishanick won by resignation"]

1. e4 {[%clk 0:03:01.9]} 1... e6 {[%clk 0:02:59.1]} 2. d4 {[%clk 0:02:57.4]}
2... d5 {[%clk 0:03:00]} 3. Bd3 {[%clk 0:02:58]} 3... dxe4 {[%clk 0:03:00.4]} 4.
Bxe4 {[%clk 0:02:59.9]} 4... Nf6 {[%clk 0:03:02.3]} 5. Bf3 {[%clk 0:03:00.8]}
5... c5 {[%clk 0:03:03.6]} 6. Ne2 {[%clk 0:03:00.6]} 6... Nc6 {[%clk 0:03:04.2]}
7. Be3 {[%clk 0:03:00.8]} 7... Nd5 {[%clk 0:03:04.8]} 8. Bxd5 {[%clk 0:03:01.5]}
8... Qxd5 {[%clk 0:03:05.8]} 9. Nbc3 {[%clk 0:03:02.5]} 9... Qxg2 {[%clk
0:03:06.7]} 10. Rg1 {[%clk 0:03:03.1]} 10... Qxh2 {[%clk 0:02:09.9]} 11. Bf4
{[%clk 0:02:42.8]} 11... Qh5 {[%clk 0:02:09.8]} 12. Nb5 {[%clk 0:02:42.7]} 12...
cxd4 {[%clk 0:01:51.7]} 13. Nc7+ {[%clk 0:02:41.4]} 13... Ke7 {[%clk 0:01:52.8]}
14. Nxa8 {[%clk 0:01:32.3]} 14... e5 {[%clk 0:01:52.5]} 15. Bg3 {[%clk 0:01:33]}
15... Kd8 {[%clk 0:01:28]} 16. c3 {[%clk 0:00:58.5]} 16... Bg4 {[%clk
0:01:27.1]} 17. Bxe5 {[%clk 0:00:44.5]} 17... Nxe5 {[%clk 0:00:47.8]} 18. Qxd4+
{[%clk 0:00:43.4]} 18... Kc8 {[%clk 0:00:49.1]} 19. O-O-O {[%clk 0:00:37.4]}
19... Be7 {[%clk 0:00:50.3]} 20. Qxa7 {[%clk 0:00:28.2]} 20... Nc6 {[%clk
0:00:35.8]} 21. Nb6+ {[%clk 0:00:21.4]} 21... Kc7 {[%clk 0:00:36.8]} 22. Nd5+
{[%clk 0:00:22.8]} 22... Qxd5 {[%clk 0:00:35.9]} 23. Rxd5 {[%clk 0:00:24.7]}
23... Nxa7 {[%clk 0:00:36.9]} 24. Rxg4 {[%clk 0:00:25.8]} 24... g6 {[%clk
0:00:34.5]} 25. b4 {[%clk 0:00:24.3]} 25... h5 {[%clk 0:00:34.6]} 26. Rc4+
{[%clk 0:00:25.1]} 26... Kb8 {[%clk 0:00:35.5]} 27. Rd7 {[%clk 0:00:25.7]} 27...
Bg5+ {[%clk 0:00:36.6]} 28. f4 {[%clk 0:00:25.9]} 28... Bd8 {[%clk 0:00:35.8]}
29. Rxf7 {[%clk 0:00:17.1]} 29... h4 {[%clk 0:00:36.5]} 30. Ng1 {[%clk
0:00:17.4]} 30... h3 {[%clk 0:00:30.9]} 31. Nxh3 {[%clk 0:00:18]} 31... Rxh3
{[%clk 0:00:32.8]} 32. Rf8 {[%clk 0:00:19.2]} 32... Rd3 {[%clk 0:00:34.3]} 33.
Kc2 {[%clk 0:00:19.5]} 33... Rd7 {[%clk 0:00:34]} 34. a4 {[%clk 0:00:19.1]}
34... Nc6 {[%clk 0:00:33.9]} 35. Re4 {[%clk 0:00:20]} 35... Kc7 {[%clk
0:00:33.8]} 36. Rg8 {[%clk 0:00:20.7]} 36... Ne7 {[%clk 0:00:33.8]} 37. Rg7
{[%clk 0:00:21.6]} 37... Kc6 {[%clk 0:00:19.5]} 38. a5 {[%clk 0:00:21.9]} 38...
Kb5 {[%clk 0:00:15.9]} 39. Kb3 {[%clk 0:00:20.7]} 39... Kc6 {[%clk 0:00:16.8]}
40. Re6+ {[%clk 0:00:21.7]} 40... Kd5 {[%clk 0:00:17.8]} 41. Rexg6 {[%clk
0:00:22.2]} 41... Rc7 {[%clk 0:00:18.5]} 42. Rg1 {[%clk 0:00:19.3]} 42... Rc8
{[%clk 0:00:19.6]} 43. Rd1+ {[%clk 0:00:20.2]} 43... Kc6 {[%clk 0:00:21]} 44.
Rxd8 {[%clk 0:00:20.9]} 44... Rxd8 {[%clk 0:00:22.6]} 45. Rxe7 {[%clk
0:00:22.5]} 45... Rf8 {[%clk 0:00:24.1]} 46. Re4 {[%clk 0:00:23.6]} 46... Kd5
{[%clk 0:00:24.5]} 47. Re5+ {[%clk 0:00:23.9]} 47... Kd6 {[%clk 0:00:25.2]} 48.
Rb5 {[%clk 0:00:25.3]} 48... Rxf4 {[%clk 0:00:25.9]} 49. Rxb7 {[%clk 0:00:26.1]}
49... Kc6 {[%clk 0:00:27.4]} 50. Rb6+ {[%clk 0:00:27.3]} 50... Kc7 {[%clk
0:00:29]} 51. Rh6 {[%clk 0:00:27.9]} 51... Kb7 {[%clk 0:00:30.2]} 52. b5 {[%clk
0:00:28.8]} 52... Ka8 {[%clk 0:00:32.1]} 53. a6 {[%clk 0:00:29.8]} 53... Rf5
{[%clk 0:00:33.3]} 54. c4 {[%clk 0:00:30.8]} 54... Rf3+ {[%clk 0:00:34]} 55. Kb4
{[%clk 0:00:31.9]} 55... Rf5 {[%clk 0:00:35.9]} 56. Ka5 {[%clk 0:00:32.6]} 56...
Ka7 {[%clk 0:00:37.4]} 57. Rh7+ {[%clk 0:00:32]} 57... Ka8 {[%clk 0:00:38.8]}
58. Kb4 {[%clk 0:00:31.9]} 58... Rf1 {[%clk 0:00:37.7]} 59. b6 {[%clk
0:00:32.8]} 59... Rf8 {[%clk 0:00:38.9]} 60. Kb5 {[%clk 0:00:32.5]} 60... Re8
{[%clk 0:00:39.7]} 61. c5 {[%clk 0:00:33.2]} 61... Rg8 {[%clk 0:00:40.6]} 62.
Rc7 {[%clk 0:00:33.9]} 62... Rh8 {[%clk 0:00:41.3]} 63. Rc8+ {[%clk 0:00:31.9]}
63... Rxc8 {[%clk 0:00:41.7]} 64. b7+ {[%clk 0:00:32.9]} 64... Ka7 {[%clk
0:00:43.3]} 65. bxc8=N+ {[%clk 0:00:28.5]} 65... Kb8 {[%clk 0:00:42.7]} 66. Nb6
{[%clk 0:00:28.5]} 66... Ka7 {[%clk 0:00:43.6]} 67. c6 {[%clk 0:00:29.7]} 67...
Kb8 {[%clk 0:00:45.1]} 68. Nd5 {[%clk 0:00:30.6]} 68... Ka7 {[%clk 0:00:46.3]}
69. c7 {[%clk 0:00:31.6]} 69... Ka8 {[%clk 0:00:47.7]} 70. c8=Q+ {[%clk
0:00:31.3]} 1-0